Cogmind - Beta 16.1 @@@ ROGUE MODE // 2026.02.24 @ 21:45:36 Player: TheSkyeDoctor Result: Destroyed by as-35742 with Assembled Rifle Performance ------------- Evolutions (0) 0 Regions Visited (2) 400 Robots Destroyed (9) 45 Value Destroyed (211) 211 Prototype IDs (0) 0 Alien Tech Used (0) 0 Bonus (0) 0 TOTAL SCORE: 656 Bonus ------- None Cogmind --------- Core Integrity 0/250 Matter 219/300 Energy 143/250 System Corruption 7% Temperature Cool (5) Movement Treading (480) Ox4 Location -10/Mines Parts ------- > --- POWER (1) -------- Ion Engine > --- PROPULSION (2) --- Light Treads > --- UTILITY (2) ------ Huge Storage Unit Hardened Light Armor Plating > --- WEAPON (2) ------- (None) > --- INVENTORY (25) --- Heat Sink High-capacity Matter Pod (189) Seismic Detector Power Shielding Hardened Light Armor Plating Shield Generator Peak State ------------ > --- POWER ------------ Ion Engine > --- PROPULSION ------- Wheel Wheel > --- UTILITY ---------- Huge Storage Unit Seismic Detector > --- WEAPON ----------- Light Assault Rifle Grenade Launcher > --- INVENTORY -------- Ion Engine Light Treads Heat Sink High-capacity Matter Pod Power Shielding Hardened Light Armor Plating Hardened Light Armor Plating Shield Generator [Rating: 8] Favorites ----------- Power Light Ion Engine Engine Light Ion Engine Propulsion Light Treads Treads Light Treads Wheel Wheel Utility Seismic Detector Device Seismic Detector Storage Huge Storage Unit Protection Power Shielding Weapon Light Assault Rifle Energy Gun EM Pulse Gun Ballistic Gun Light Assault Rifle Launcher Grenade Launcher Build | -11 -10 -10 ------- Run | Yrd Mat Min Slots Evolved . | . . . Power . | . . . Propulsion . | . . . Utility . | . . . Weapon . | . . . Parts Attached 15 | 8 5 2 Power 3 | 1 1 1 Engine 3 | 1 1 1 Core . | . . . Reactor . | . . . Propulsion 4 | 3 1 . Treads 2 | 2 . . Leg . | . . . Wheel 2 | 1 1 . Hover . | . . . Flight . | . . . Utility 5 | 2 2 1 Device 1 | 1 . . Storage 2 | 1 1 . Processor . | . . . Hackware . | . . . Protection 2 | . 1 1 Artifact . | . . . Weapon 3 | 2 1 . Energy Gun 1 | 1 . . Energy Cannon . | . . . Ballistic Gun 1 | 1 . . Ballistic Cannon . | . . . Launcher 1 | . 1 . Special Weapon . | . . . Impact Weapon . | . . . Slashing Weapon . | . . . Piercing Weapon . | . . . Special Melee Weapon . | . . . Unidentified Prototypes . | . . . Corrupted Parts 1 | . 1 . System Corruption 2 | . 2 . Parts Lost 7 | . 3 4 Power 1 | . 1 . Propulsion 3 | . 1 2 Utility . | . . . Weapon 3 | . 1 2 Highest Loss Streak 4 | . 3 4 To Critical Strikes 1 | . 1 . Average Backups 4 | 1 5 7 Power . | . 1 . Propulsion . | . 1 1 Utility 2 | . 3 6 Weapon . | . . . Tool/Special . | . . . Unused Backups 4 | . . 4 Power . | . . . Propulsion . | . . . Utility 4 | . . 4 Weapon . | . . . Tool/Special . | . . . Average Slot Usage (%) 86 | . 86 83 Engine 13 | . 13 12 Treads 15 | . 17 1 Wheel 6 | . 4 22 Device 13 | . 14 10 Storage 12 | . 11 14 Protection 1 | . 1 3 Energy Gun 6 | . 6 . Ballistic Gun 13 | . 14 8 Launcher 3 | . 2 8 Peak Build Rating 8 | 7 8 8 Average Rating 6 | 5 6 7 On Entrance 5 | . 7 8 Avg Prop Armor Cover (%) 11 | 11 . . Naked Turns . | . . . Heaviest Build 90 | 12 90 90 Greatest Support 40 | 40 40 20 Greatest Overweight (x) 8 | . 8 8 Average Overweight (x) 2 | . 3 4 Largest Inventory Capacity 25 | 8 25 25 Average Capacity 17 | 7 19 25 Most Carried 9 | 2 8 9 Average Carried 4 | 1 5 7 Final Capacity 25 | 8 25 25 Final Carried 8 | 2 8 6 Class Distribution -------------------- 100% | Mutant Dominant Class ---------------- Mutant | -10/Materials Mutant | -10/Mines Resources | -11 -10 -10 ----------- Run | Yrd Mat Min Matter Collected 513 | 282 231 . Remotely . | . . . Salvage Created 291 | 29 247 15 Parts 22 | 4 18 . Haulers Intercepted . | . . . Recyclers Shooed . | . . . Parts Field Recycled . | . . . Retrieved Matter . | . . . Parts Self-Destructed . | . . . Prevented . | . . . Parts Restored . | . . . Kills | -11 -10 -10 ------- Run | Yrd Mat Min Combat Hostiles Destroyed 8 | . 7 1 Melee 1 | . . 1 Guns 7 | . 7 . Classes Destroyed 5 | 1 3 1 Builder 1 | . 1 . Tunneler 1 | 1 . . Swarmer 3 | . 3 . Grunt 4 | . 4 . Assembled 1 | . . 1 Best Kill Streak 5 | 1 5 1 Combat Bots Only 5 | . 5 1 Max Kills in Single Turn 1 | 1 1 1 Gunslinging . | . . . Exploded . | . . . Melee 1 | . . 1 Uniques/NPCs Destroyed . | . . . Combat | -11 -10 -10 -------- Run | Yrd Mat Min Hostile Shots Fired 111 | . 64 47 Missed 27 | . 14 13 Hits 84 | . 50 34 Melee 8 | . . 8 Projectile 76 | . 50 26 Critical Strikes 1 | . 1 . Damage Taken 1101 | . 539 562 Core 250 | . 113 137 Absorbed by Shields . | . . . Core Remaining (%) 100 | 100 . . Volleys Fired 40 | 2 38 . Largest 2 | 2 2 . Hottest 60 | 60 60 . Shots Fired 60 | 4 56 . Gun 59 | 4 55 . Cannon . | . . . Launcher 1 | . 1 . Special . | . . . Kinetic 40 | 2 38 . Thermal . | . . . Explosive 1 | . 1 . Electromagnetic 19 | 2 17 . Robot Hit Streak 9 | 2 9 . Robot Miss Streak 3 | 1 3 . Penetration Max . | . . . Secondary Targets 3 | . 3 . Max Gunslinging Chain 1 | . 1 . Shots Hit Robots 39 | 2 37 . Core Hits 18 | 1 16 1 Critical Kills . | . . . Critical Parts Destroyed . | . . . Critical Strikes . | . . . Melee Attacks . | . . . Impact . | . . . Slashing . | . . . Piercing . | . . . Sneak Attacks . | . . . Combat Hostiles . | . . . Follow-up Attacks . | . . . Damage Inflicted 476 | 18 428 30 Guns 376 | 18 358 . Cannons . | . . . Explosions 68 | . 68 . Melee . | . . . Ramming 32 | . 2 30 Kinetic 203 | 6 197 . Thermal . | . . . Explosive 68 | . 68 . Electromagnetic 173 | 12 161 . Impact . | . . . Slashing . | . . . Piercing . | . . . Highest Corruption 7 | . 2 7 Average Corruption 2 | . 2 3 Corruption Purged . | . . . Corruption Blocked . | . . . Effects 5 | . 4 1 Message Errors 1 | . . 1 Matter Fused 3 | . 3 . Alerts 1 | . 1 . Overload Shots . | . . . Overflow Damage . | . . . Projectiles . | . . . Explosions . | . . . Melee . | . . . Knockbacks . | . . . Impact . | . . . Kinetic . | . . . Secondary . | . . . Self-Inflicted Damage 56 | . 41 15 Shots 1 | . 1 . Rammed 4 | . 1 3 Targets Rammed 4 | . 1 3 Kicked . | . . . Crushed . | . . . Highest Temperature 168 | 20 168 5 Average Temperature 62 | 12 69 5 Received Heat Transfer 192 | . 132 60 Siege Activations . | . . . Martial Activations . | . . . Shielding Activations . | . . . Robots Disrupted . | . . . Combat Hostiles . | . . . Robots Corrupted . | . . . Combat Hostiles . | . . . Parts Fried . | . . . Impact Corruptions . | . . . Robots Melted . | . . . Combat Hostiles . | . . . Parts Melted . | . . . Heat Transferred . | . . . Parts Sabotaged . | . . . Parts Stolen . | . . . Parts Stripped . | . . . Power Chain Reactions . | . . . Alert | -11 -10 -10 ------- Run | Yrd Mat Min Maximum Alert Level . | . . . Low Security (%) 100 | 100 100 100 Level 1 . | . . . Level 2 . | . . . Level 3 . | . . . Level 4 . | . . . Level 5 . | . . . High Security . | . . . Max Security . | . . . Peak Influence 60 | 5 60 4 Initial 4 | . . 4 Average 9 | . 12 1 Influence Increases 224 | 5 219 . Destroy 0b10 Robot/C 140 | . 140 . Destroy 0b10 Robot/NC 10 | 5 5 . Destroy Leader 20 | . 20 . Disable Machine 30 | . 30 . Destroy Structure 9 | . 9 . Lose Combat Pursuer 15 | . 15 . Influence Decreases 224 | 5 206 13 Entered New Map 9 | . . 9 Time Decay 185 | 5 176 4 Lost Part 30 | . 30 . Squads Dispatched 2 | . 2 . Investigation 1 | . 1 . Extermination . | . . . Reinforcement 1 | . 1 . Assault . | . . . Garrison . | . . . Intercept . | . . . Searches Triggered . | . . . Construction Impeded . | . . . Haulers Reinforced . | . . . Active Scanning Responses . | . . . Cargo Convoy Interrupts . | . . . Stealth | -11 -10 -10 --------- Run | Yrd Mat Min Distress Signals 1 | . 1 . Communications Jammed . | . . . Distress Signals . | . . . Times Spotted 28 | . 13 15 Peak Tracking Total 16 | . 8 16 Tactical Retreats 2 | . 1 1 Traps | -11 -10 -10 ------- Run | Yrd Mat Min Traps Triggered 1 | . 1 . Indirectly . | . . . Trap Hack Attempts . | . . . Triggered . | . . . Disarmed . | . . . Reprogrammed . | . . . Reused . | . . . Traps Extracted . | . . . Installed . | . . . Triggered . | . . . Machines | -11 -10 -10 ---------- Run | Yrd Mat Min Machines Disabled 2 | . 2 . Max in Single Turn 1 | . 1 . Machines Repaired . | . . . Machines Dismantled . | . . . Machines Sabotaged . | . . . Overloaded Fab Kills . | . . . Hacking | -11 -10 -10 --------- Run | Yrd Mat Min Machines Accessed 4 | . 4 . Terminals 3 | . 3 . Fabricators . | . . . Repair Stations . | . . . Recycling Units 1 | . 1 . Scanalyzers . | . . . Garrison Access . | . . . Total Hacks 8 | . 8 . Successful 4 | . 4 . Failed 4 | . 4 . Catastrophic . | . . . Database Lockouts . | . . . Manual 6 | . 6 . Terminals 6 | . 6 . Fabricators . | . . . Repair Stations . | . . . Recycling Units 2 | . 2 . Scanalyzers . | . . . Garrison Access . | . . . Terminal Hacks 1 | . 1 . Recall Investigation 1 | . 1 . Fabricator Hacks . | . . . Repair Station Hacks . | . . . Recycling Unit Hacks 1 | . 1 . Retrieve Components 1 | . 1 . Scanalyzer . | . . . Garrison Access Hacks . | . . . Unauthorized Hacks 2 | . 2 . Terminals 2 | . 2 . Botnet 2 | . 2 . Fabricators . | . . . Repair Stations . | . . . Recycling Units . | . . . Scanalyzers . | . . . Garrison Access . | . . . Data Cores Recovered . | . . . Used . | . . . Hacking Detections 2 | . 2 . Full Trace Events . | . . . Feedback Events . | . . . Feedback Blocked . | . . . Robot Schematics Acquired . | . . . Robots Built . | . . . Authchips . | . . . Time . | . . . Total Robot Build Rating . | . . . Part Schematics Acquired . | . . . Parts Built . | . . . Authchips . | . . . Time . | . . . Total Part Build Rating . | . . . Part Studies Acquired . | . . . Parts Repaired . | . . . Time . | . . . Parts Recycled . | . . . Recycled Matter . | . . . Retrieved Matter . | . . . Retrieved Components 3 | . 3 . Parts Scanalyzed . | . . . Part Schematics Acquired . | . . . Parts Damaged . | . . . Bothacking | -11 -10 -10 ------------ Run | Yrd Mat Min Used RIF Installer . | . . . Robots Hacked . | . . . Non-combat . | . . . Combat . | . . . Robot Hacks Applied . | . . . Relay Couplers Released . | . . . Fabnet Peak Effective % . | . . . Robots Rewired . | . . . Allies Hacked . | . . . Hacks Repelled . | . . . Allies | -11 -10 -10 -------- Run | Yrd Mat Min Total Allies . | . . . Largest Group . | . . . Highest-Rated Group . | . . . Highest-Rated Ally . | . . . Total Orders . | . . . Ally Attacks . | . . . Total Damage . | . . . Kills . | . . . Allies Corrupted . | . . . Allies Melted . | . . . Intel | -11 -10 -10 ------- Run | Yrd Mat Min Active Infowar (turns) 862 | 120 690 52 Seismic 862 | 120 690 52 Robot Analysis Total . | . . . Derelict Logs Recovered 1 | . . 1 Drone Launches . | . . . Drone Recoveries . | . . . Exploration | -11 -10 -10 ------------- Run | Yrd Mat Min Turns Passed 949 | 191 690 68 Spaces Moved 405 | 107 258 40 Core 3 | 3 . . Treads 261 | 100 161 . Legs . | . . . Wheels 141 | 4 97 40 Hover . | . . . Flight . | . . . Fastest Speed 50 | 50 140 140 Average Speed 193 | 153 217 147 Slowest Speed 480 | 160 480 200 Overloaded Moves . | . . . Propulsion Burnouts . | . . . Robots Hopped . | . . . Potential Cave-ins . | . . . Cave-ins Triggered . | . . . Exploration Rate (%) 24 | 4 45 25 Regions Visited 2 Branch Regions 1 Pre-discovered Areas . | . . . Known Exits Taken . | . . . Unknown Exits Taken 2 | 1 1 . Scrap Searched . | . . . Spaces Dug . | . . . Terrain Destroyed 8 | . 8 . Melee . | . . . Projectile . | . . . AOE 8 | . 8 . Terrain Rammed . | . . . Walls Destroyed . | . . . Machines Disabled . | . . . Actions | -11 -10 -10 --------- Run | Yrd Mat Min Total 509 | 126 335 48 Wait 32 | 8 24 . Move 403 | 106 257 40 Hop . | . . . Pick Up 8 | 2 6 . Fast Attach 11 | 7 4 . Attach 2 | . . 2 Detach 2 | . 1 1 Swap 5 | 1 3 1 Drop 2 | . 1 1 Fire 40 | 2 38 . Melee . | . . . Ram 4 | . 1 3 Kick . | . . . Crush . | . . . Escape Stasis . | . . . Rewire . | . . . Trap . | . . . Miscellaneous . | . . . Route ------- -11/Scrapyard -10/Materials (discovered 2 exits: [*Min x2]) -10/Mines History --------- Turn | Location | Event 52 | -11/Scrapyard | Discovered new exit (range 15) 192 | -11/Scrapyard | Entered Materials 304 | -10/Materials | Build established: Mutant 588 | -10/Materials | Lost 3 parts (1p1n1w) 612 | -10/Materials | Discovered new exit (range 13) 710 | -10/Materials | Discovered new exit (range 10) 882 | -10/Materials | Entered Mines 902 | -10/Mines | Assembled infested the area 907 | -10/Mines | Assisted by a Guerilla fighting off Assembled 925 | -10/Mines | Core integrity fell below 50% 930 | -10/Mines | Learned location of 1 exit from Materials 942 | -10/Mines | Core integrity fell below 20% 950 | -10/Mines | Destroyed by as-35742 with Assembled Rifle Last Messages --------------- as-51956 knocked back. BB-ZXS(h) system corrupted by crushing effect. BB-ZXS(h) system terminally corrupted. Knocked back. Grenade Launcher destroyed. Lgt. Assault Rifle destroyed. System corrupted by crushing effect (+2). System corrupted by crushing effect (+3). Slammed into as-38487. as-38487 destroyed. Ion Engine broken. Destabilizing: Short circuit. Acquired derelict log, extracted data. Data stored: Materials exits (x1). Q20HS YM/ZL P=FAL FED Wheel destroyed. Knocked back. Dropped Broken Ion Engine. as-88817 destroyed. Wheel destroyed. Map ----- +----------------------------------------------------+ | ?????????????????????# """ """ #????????????????? | | ?????????????????????# #????????????????? | | ?????????????????????# #????????????????? | | ?????????????????????# #????????????????? | | ?????????????????????#### #######????????????????? | | ???????????????????###### ###### ?????????? | | ??????#????????????# ?????????? | | ?????? #???????# ########### ?????????? | | ?????# % ##### #???????????????????????????? | | ??????# % #???????????????????????????? | | ???????# ########????????????????????? | | ????????# = #"### #?????????????????? | | ????????## ???#?? # ########????????????????????? | | ????????????#?????# #???????????????????????????? | | ???????????## ???# #???????????????????????????? | | ??????????## ??? #???????????????????????????? | | ??????????# ### ###?????????????????????????? | | ?????????## < a #?????????????????????????? | | ?????????# aaa ##????????????????????????? | | ????????# % ##???????????????????????? | | ????????# ##??????????????????????? | | ????????# #??????????????????????? | | ????????# a #??????????????????????? | | ????????# #??????????????????????? | | ????????# a#??????????????????????? | | ????????## #### @#??????????????????????? | | ?????????##????## #?????????????????????? | | ????????????????# ????????????????????? | | ????????????????# ???????????????????? | | ????????????????## ??????????????????? | | ?????????????????## ##?????????????????? | | ??????????????????## ##??????????????????? | | ???????????????????# #???????????????????? | | ???????????????????## #???????????????????? | | ????????????????????#### #???????????????????? | | ???????????????????????## ???????????????????? | | ????????????????????????? ???????????????????? | | ????????????????????????? ??????????????????? | | ????????????????????????? ##??????????????????? | | ?????????????????????????#####???????????????????? | | ?????????????????????????????????????????????????? | | ?????????????????????????????????????????????????? | | ?????????????????????????????????????????????????? | | ?????????????????????????????????????????????????? | | | | | | | | | | | | | +----------------------------------------------------+ Best States ------------- Heat Dissipation 25 Energy Generation 10 Energy Capacity 250 Matter Stores 300 Matter Capacity 300 Sight Range 16 Terrain Scan Density 10 Armor Coverage 150 Power Shielding 33 Evasion (%) 40 Recoil Reduction 2 Item Schematics ----------------- None Robot Schematics ------------------ None Fabricated ------------ Nothing Repaired ---------- Nothing Studied --------- None Alien Tech Used ----------------- None Achievements -------------- None Challenges ------------ None Game ------ Seed NullTransmissionGutpuncher Manual? 0 Play Time 00:10:42 Cumulative 39.6 hours Start 2026.02.24 @ 21:35:32 End 2026.02.24 @ 21:45:36 Sessions 1 Manual Loads 0 Difficulty Rogue Special Mode None Game No. 96 Rogue 96 Adventurer 0 Explorer 0 Win Type - Total 0 Types 0/0/0/0/0/0/0/0/0/0 Lore% 29 Gallery% 35 Achievement% 27 Wizard Run 0 Options --------- Layout 2 ASCII 0 Keyboard 1 Movement Arrows Keybinds 0 Fullscreen 1 Font 24/Smallcaps Map View 50x44 Zoom Use 0% Tactical HUD 0 Map Filters NONE Filters NONE Steam 1 RUN: 7a97318b-1aa4-4323-abcd-d5043a920765